bitfinex-derivatives/quotes_ETHF0:USTF0_20250910
["timestamp","ask_amount","ask_price","bid_price","bid_amount"]
[1757475585280,1.45394706,4314.3,4314.2,0.7173]
[1757475587381,1.21894706,4314.3,4314.2,0.7173]
[1757475587582,1.45394706,4314.3,4314.2,0.7173]
[1757475587781,1.21894706,4314.3,4314.2,0.7173]
[1757475588080,1.45394706,4314.3,4314.2,0.7173]
[1757475592487,1.21894706,4314.3,4314.2,0.7173]
[1757475592787,1.45394706,4314.3,4314.2,0.7173]
[1757475595783,1.07429412,4314.3,4314.2,0.7173]
[1757475595984,0.83929412,4314.3,4314.2,0.7173]
[1757475596185,1.07429412,4314.3,4314.2,0.7173]
[1757475596583,0.83929412,4314.3,4314.2,0.7173]
[1757475596786,1.07429412,4314.3,4314.2,0.7173]
[1757475600191,1.19120251,4314.3,4314.2,0.7173]
[1757475600399,1.70372593,4314.3,4314.2,0.7173]
[1757475600598,1.70372593,4314.3,4314.2,0.5225]
[1757475601896,1.70372593,4314.3,4314.2,0.317]
[1757475604793,1.70372593,4314.3,4314.2,0.5317]
[1757475610704,1.70372593,4314.3,4314.2,0.73]
[1757475611605,1.70372593,4314.3,4314.2,7.32836413]
[1757475614204,0.62943181,4314.3,4314.2,7.32836413]
[1757475614406,0.86443181,4314.3,4314.2,11.56015413]
[1757475614600,0.235,4314.3,4314.2,11.56015413]
[1757475614801,0.235,4314.3,4314.2,11.32836413]
[1757475615205,1.45394706,4314.3,4314.2,7.32836413]
[1757475615405,2.08540525,4314.3,4314.2,0.73]
[1757475615604,2.08540525,4314.3,4314.2,0.5317]
[1757475616008,1.96809843,4314.3,4314.2,0.5317]
[1757475616307,2.08541014,4314.3,4314.2,0.5317]
[1757475618312,1.89683359,4314.3,4314.2,0.5317]
[1757475629615,1.89684152,4314.3,4314.2,0.5317]
[1757475630517,1.89684152,4314.3,4314.2,0.317]
[1757475631219,0.7153,4313.9,4313.8,0.00347685]
[1757475631517,2.09699015,4313.9,4313.8,0.21657685]
[1757475633113,2.09699015,4313.9,4313.8,0.53347685]
[1757475633412,1.80069015,4313.9,4313.5,0.3169]
[1757475633619,0.124,4313.5,4312.8,0.17621758]
[1757475633816,0.7374,4313.2,4313.1,7.00826413]
[1757475634117,0.86868539,4313.2,4313.1,7.00826413]
[1757475634316,0.86868539,4313.2,4313.1,0.4099]
[1757475635617,0.86868539,4313.2,4313.1,0.7268]
[1757475640210,0.7374,4313.2,4313.1,0.7268]
[1757475640426,0.86845629,4313.2,4313.1,0.7268]
[1757475645427,0.56955629,4313.2,4313.1,0.7268]
[1757475646227,0.88795629,4313.2,4313.1,0.7268]
[1757475648135,0.33555629,4313.2,4313.1,0.7268]
[1757475648427,0.36505629,4313.2,4313.1,0.7268]
[1757475648932,1.08475629,4313.2,4313.1,0.7202]
[1757475650925,0.9537,4313.2,4313.1,0.7202]
[1757475651732,1.08472902,4313.2,4313.1,0.7202]
[1757475652030,0.9537,4313.2,4313.1,0.7202]
[1757475652229,1.08473448,4313.2,4313.1,0.7202]
[1757475653134,1.08473448,4313.2,4313.1,0.5176]
[1757475655533,0.85073448,4313.2,4313.1,0.5176]
[1757475655733,1.08473448,4313.2,4313.1,0.5176]
[1757475656238,1.08473448,4313.2,4313.1,0.7202]
[1757475660231,0.36503448,4313.2,4313.1,0.7202]
[1757475660834,0.13103448,4313.2,4313.1,0.7202]
[1757475661141,0.00347685,4314.3,4314.0,0.5292]
[1757475661142,1.54477051,4314.1,4314.0,0.5292]
[1757475661347,2.42535821,4314.1,4314.0,0.8265]
[1757475661643,2.42535821,4314.1,4314.0,7.42486413]
[1757475662037,2.63065821,4314.1,4314.0,7.42486413]
[1757475664748,2.63065821,4314.1,4314.0,7.70804825]
[1757475667153,2.39665821,4314.1,4314.0,7.70804825]
[1757475667349,2.63065821,4314.1,4314.0,7.70804825]
[1757475669744,2.63065821,4314.1,4314.0,7.70786414]
[1757475673449,2.63065821,4314.1,4314.0,7.7078108]
[1757475674565,2.63065821,4314.1,4314.0,7.3793108]
[1757475674858,2.63065821,4314.1,4314.0,0.28294667]
[1757475675063,0.7197,4313.2,4313.1,0.7006]
[1757475675359,1.98407051,4313.2,4313.1,7.29896413]
[1757475675563,1.98407051,4313.2,4313.1,0.7006]
[1757475675752,0.9537,4313.2,4313.1,0.7006]
[1757475675957,1.98407051,4313.2,4313.1,0.7006]
[1757475677561,0.234,4313.2,4313.1,0.7006]
[1757475677864,1.26437051,4313.2,4313.1,0.7006]
[1757475678470,0.234,4313.2,4313.1,0.7006]
[1757475687273,0.7551,4313.2,4313.1,0.7006]
[1757475688472,0.5211,4313.2,4313.1,0.7006]
[1757475688673,0.7551,4313.2,4313.1,0.7006]
[1757475690377,0.5211,4313.2,4313.1,0.7006]
[1757475690674,0.7363,4313.2,4313.1,0.7006]
[1757475692179,1.95663908,4313.2,4313.1,0.7006]
[1757475697682,0.1983,4313.6,4313.5,0.8254]
[1757475697883,0.94725096,4313.6,4313.5,0.8254]
[1757475698184,1.27005096,4313.6,4313.5,7.42376413]
[1757475703791,0.74895096,4313.6,4313.5,7.42376413]
[1757475710391,0.51495096,4313.6,4313.5,7.42376413]
[1757475710592,0.74895096,4313.6,4313.5,7.42376413]
[1757475714707,0.74895096,4313.6,4313.5,0.8254]
[1757475715905,0.74895096,4313.6,4313.5,7.42376413]
[1757475718507,0.74895096,4313.6,4313.5,0.8254]
[1757475718710,0.74895096,4313.6,4313.5,7.42376413]
[1757475720408,0.94415096,4313.6,4313.5,7.42376413]
[1757475720611,1.24435096,4313.6,4313.5,7.42376413]
[1757475721112,0.94415096,4313.6,4313.5,7.42376413]
[1757475722713,1.24435096,4313.6,4313.5,7.42376413]
[1757475723413,1.44235096,4313.6,4313.5,7.42376413]
[1757475723716,1.20835096,4313.6,4313.5,7.42376413]
[1757475723919,1.44235096,4313.6,4313.5,7.42376413]
[1757475726214,1.44235096,4313.6,4313.5,6.79696413]
[1757475726215,2.66269004,4313.6,4313.5,6.79696413]
[1757475726412,0.3932,4313.4,4313.3,0.3013]
[1757475726616,0.6934,4313.4,4313.3,0.5027]
[1757475726814,1.20835096,4313.4,4313.3,0.7048]
[1757475730018,0.6934,4313.4,4313.3,0.7048]
[1757475730219,1.20906696,4313.4,4313.3,0.7048]
[1757475731016,0.71086696,4313.4,4313.3,0.7048]
[1757475731216,0.74966696,4313.4,4313.3,0.7048]
[1757475731418,0.234,4313.4,4313.3,0.7048]
[1757475732314,1.22033908,4314.2,4313.5,0.1281]
[1757475732515,1.61353908,4314.2,4314.1,0.7048]
[1757475732714,2.3632388,4314.2,4314.1,0.7048]
[1757475732915,2.6634388,4314.2,4314.1,0.7048]
[1757475733218,1.44309972,4314.2,4314.1,0.7048]
[1757475734114,1.20909972,4314.2,4314.1,0.7048]
[1757475734311,1.44309972,4314.2,4314.1,0.7048]
[1757475736220,0.74969972,4314.2,4314.1,0.7048]
[1757475736625,0.94489972,4314.2,4314.1,0.7048]
[1757475736829,1.24509972,4314.2,4314.1,0.7048]
[1757475737019,0.74969972,4314.2,4314.1,0.7048]
[1757475737526,0.00347685,4314.3,4314.1,0.7048]
[1757475737724,0.74957823,4314.2,4314.1,7.32126413]
[1757475738125,0.51557823,4314.2,4314.1,0.7229]
[1757475738326,0.00347685,4314.3,4314.1,0.7229]
[1757475738526,0.00347685,4314.3,4314.2,7.31846413]
[1757475738726,0.23747685,4314.3,4314.2,7.31846413]
[1757475739121,0.00347685,4314.3,4314.2,7.31846413]
[1757475739528,0.23747685,4314.3,4314.2,7.31846413]
[1757475747733,0.00347685,4314.3,4314.2,0.7201]
[1757475747940,0.00347685,4314.3,4314.2,7.31846413]
[1757475747941,0.23747685,4314.3,4314.2,7.31846413]
[1757475750741,0.00347685,4314.3,4314.2,0.7201]
[1757475750942,0.23747685,4314.3,4314.2,0.7201]
[1757475751745,0.23747685,4314.3,4314.2,7.31846413]
[1757475754747,0.00347685,4314.3,4314.2,7.31846413]
[1757475754942,0.23747685,4314.3,4314.2,7.31846413]
[1757475755347,0.00347685,4314.3,4314.2,7.31846413]
[1757475755644,0.23747685,4314.3,4314.2,7.31846413]
[1757475757348,0.00347685,4314.3,4314.2,7.31846413]
[1757475757542,1.74260443,4315.4,4315.3,0.7201]
[1757475757741,0.4473,4315.4,4315.3,0.7201]
[1757475757943,0.2133,4315.4,4315.3,0.7201]
[1757475758143,1.32080443,4315.6,4315.5,0.128]
[1757475758446,1.76810443,4315.6,4315.5,0.8481]
[1757475758648,1.97660443,4315.6,4315.5,7.44646413]
[1757475759044,1.97660443,4315.6,4315.5,7.31846413]
[1757475759344,1.74260443,4315.6,4315.5,7.31846413]
[1757475759551,1.97660443,4315.6,4315.5,7.31846413]
[1757475765053,1.97660443,4315.6,4315.5,7.44646413]
[1757475769756,2.49178871,4315.6,4315.5,7.44646413]
[1757475770648,2.49178871,4315.6,4315.5,0.8481]
[1757475770859,2.49178871,4315.6,4315.5,7.44646413]
[1757475777658,2.20088871,4315.6,4315.5,7.44646413]
[1757475778459,2.51408871,4315.6,4315.5,7.44646413]
[1757475779768,1.99238871,4315.6,4315.5,7.44646413]
[1757475780262,1.77908871,4315.6,4315.5,7.44646413]
[1757475780463,1.54508871,4315.6,4315.5,7.44646413]
[1757475780770,33.394,4316.0,4315.9,0.7199]
[1757475780967,33.628,4316.0,4315.9,0.7199]
[1757475781162,33.628,4316.0,4315.9,7.31826413]
[1757475781859,33.394,4316.0,4315.9,7.31826413]
[1757475782064,1.99550712,4318.0,4316.4,0.7199]
[1757475782065,1.02990443,4316.5,4316.4,0.7199]
[1757475782363,1.26390443,4316.5,4316.4,0.7199]
[1757475782561,1.26390443,4316.5,4316.4,7.31826413]
[1757475785263,1.46380443,4316.5,4316.4,7.31826413]
[1757475786563,0.4339,4316.5,4316.4,7.31826413]
[1757475786769,1.02990443,4316.5,4316.4,7.31826413]
[1757475786970,1.26390443,4316.5,4316.4,7.31826413]
[1757475788070,1.02990443,4316.5,4316.4,7.31826413]
[1757475788258,1.26390443,4316.5,4316.4,7.31826413]
[1757475794867,1.26390443,4316.5,4316.4,0.7199]
[1757475795073,1.46380443,4316.5,4316.4,7.31826413]
[1757475799369,1.77040443,4316.5,4316.4,7.31826413]
[1757475800372,7.01983208,4316.5,4315.6,0.31]
[1757475800680,7.01983208,4316.5,4315.1,0.31]
[1757475800681,1.92817463,4315.7,4315.1,0.31]
[1757475800879,1.92817463,4315.3,4315.2,7.30486413]
[1757475801175,1.92817463,4315.3,4315.2,0.7065]
[1757475801374,1.92817463,4315.3,4315.2,7.30486413]
[1757475805579,2.4437875,4315.3,4315.2,7.30486413]
[1757475809877,1.42597463,4315.3,4315.2,7.30486413]
[1757475812482,1.42597463,4315.3,4315.2,7.30386413]
[1757475813183,1.73257463,4315.3,4315.2,7.30386413]
[1757475815583,1.42597463,4315.3,4315.2,7.30386413]
[1757475816379,1.73257463,4315.3,4315.2,7.30386413]
[1757475818389,1.73257463,4315.3,4315.2,0.7055]
[1757475818589,1.73257463,4315.3,4315.2,7.30386413]
[1757475818982,1.42597463,4315.3,4315.2,7.30386413]
[1757475819183,0.233,4315.6,4315.5,0.1289]
[1757475819483,0.233,4315.6,4315.5,0.5254]
[1757475820087,0.233,4315.6,4315.5,0.8354]
[1757475820486,0.233,4315.6,4315.5,0.5254]
[1757475820689,0.233,4315.6,4315.5,0.8354]
[1757475820892,0.7464,4315.6,4315.5,0.8354]
[1757475822393,0.942,4315.6,4315.5,0.8354]
[1757475822893,0.2068,4315.1,4315.0,0.5254]
[1757475823094,0.7464,4315.1,4315.0,0.8354]
[1757475823294,0.7464,4315.1,4315.0,7.43376413]
[1757475823493,0.4398,4315.1,4315.0,7.43376413]
[1757475828688,0.939,4315.1,4315.0,7.43376413]
[1757475832393,0.4398,4315.1,4315.0,7.43376413]
[1757475833702,0.233,4315.1,4315.0,7.43376413]
[1757475836505,0.233,4315.1,4315.0,0.8354]
[1757475836804,0.233,4315.1,4315.0,7.43376413]
[1757475839807,0.7506087,4315.1,4315.0,7.43376413]
[1757475840604,0.4275087,4315.1,4315.0,7.43376413]
[1757475840803,0.233,4315.1,4315.0,7.43376413]
[1757475843208,0.5318,4315.1,4315.0,7.43376413]
[1757475843619,0.946,4315.1,4315.0,0.7065]
[1757475843815,0.946,4315.1,4315.0,0.3965]
[1757475845016,0.946,4315.1,4315.0,0.7122]
[1757475851032,0.946,4315.1,4315.0,0.2001]
[1757475851227,0.713,4314.7,4314.6,0.7171]
[1757475852425,0.5126,4314.7,4314.6,0.7171]
[1757475852825,0.2988,4314.7,4314.6,0.7171]
[1757475853728,0.1189,4315.0,4314.6,0.7171]
[1757475853924,0.6315,4315.0,4314.9,0.4014]
[1757475854124,0.6315,4315.0,4314.9,0.7171]
[1757475855230,0.8319,4315.0,4314.9,0.7171]
[1757475855533,0.8319,4315.0,4314.9,0.4014]
[1757475856128,0.8319,4315.0,4314.9,0.7171]
[1757475856930,0.8319,4315.0,4314.9,0.4014]
[1757475857728,0.8319,4315.0,4314.9,6.99976413]
[1757475858528,0.8319,4315.0,4314.9,7.30666413]
[1757475861126,0.7456,4315.0,4314.9,7.30666413]
[1757475862231,0.233,4315.0,4314.9,7.30666413]
[1757475862426,1.26269919,4315.0,4314.9,7.30666413]
[1757475862826,1.56389919,4315.0,4314.9,7.30666413]
[1757475863225,1.75799919,4315.0,4314.9,7.30666413]
[1757475863426,2.08329919,4315.0,4314.9,6.99976413]
[1757475864826,2.08329919,4315.0,4314.9,7.30666413]
[1757475868237,1.02969919,4315.0,4314.9,7.30666413]
[1757475868434,1.88529919,4315.0,4314.9,7.30666413]
[1757475868742,2.08329919,4315.0,4314.9,6.99976413]
[1757475869440,2.08329919,4315.0,4314.9,7.30666413]
[1757475873839,1.56389919,4315.0,4314.9,7.30666413]
[1757475877331,1.75799919,4315.0,4314.9,7.30666413]
[1757475878046,2.08329919,4315.0,4314.9,7.30666413]
[1757475879246,2.59934695,4315.0,4314.9,7.30666413]
[1757475881248,2.59934695,4315.0,4314.9,6.99976413]
[1757475883549,1.44234776,4315.0,4314.9,7.30666413]
[1757475883751,2.27404695,4315.0,4314.9,7.30666413]
[1757475887054,1.54574695,4315.0,4314.9,7.30666413]
[1757475887250,1.77874695,4315.0,4314.9,7.30666413]
[1757475887751,1.26269919,4315.0,4314.9,7.30666413]
[1757475888154,1.57669919,4315.0,4314.9,7.30666413]
[1757475889749,2.09329648,4315.0,4314.9,7.30666413]
[1757475892455,1.54629648,4315.0,4314.9,7.30666413]
[1757475892651,1.77929648,4315.0,4314.9,7.30666413]
[1757475893961,2.30609648,4315.0,4314.9,7.30666413]
[1757475896158,2.62789648,4315.0,4314.9,6.99976413]
[1757475897058,2.62789648,4315.0,4314.9,0.4014]
[1757475898662,0.2128,4314.4,4314.3,0.7058]
[1757475898853,1.78949919,4314.4,4314.3,7.30416413]
[1757475899056,1.78949919,4314.4,4314.3,0.7058]
[1757475900551,0.314,4315.1,4314.4,0.2979]
[1757475900753,0.80138937,4317.3,4315.5,0.0644]
[1757475900958,0.1165,4318.0,4317.2,1.02969919]
[1757475901155,0.1165,4318.5,4317.7,1.86426828]
[1757475901364,0.1165,4319.0,4318.1,0.83456909]
[1757475901661,0.1165,4319.0,4317.8,0.235]
[1757475901662,0.1165,4320.0,4318.5,1.25134909]
[1757475901963,0.1165,4320.5,4319.4,1.66782049]
[1757475902166,0.1165,4320.5,4320.4,1.24592415]
[1757475902363,0.3515,4321.0,4320.4,4.32298574]
[1757475902560,0.3515,4321.0,4320.9,0.62021568]
[1757475902865,0.6655,4321.0,4320.9,0.94320142]
[1757475903366,0.5346,4320.5,4320.0,0.62021568]
[1757475903671,0.5268,4321.3,4320.4,1.02969919]
[1757475903868,0.2128,4321.2,4321.0,0.61840247]
[1757475904059,0.5268,4321.1,4320.9,0.61840247]
[1757475904258,1.56429919,4321.0,4320.5,0.61840247]
[1757475904468,0.4181,4319.7,4319.4,0.61840247]
[1757475904758,0.4181,4319.7,4318.6,1.02969919]
[1757475904759,0.1165,4319.5,4319.3,0.61840247]
[1757475904966,0.4305,4319.5,4319.4,0.3362448]
[1757475905662,0.314,4320.1,4319.4,5.36594399]
[1757475905872,0.314,4320.4,4319.8,1.02969919]
[1757475906158,0.314,4320.4,4318.8,8.21675]
[1757475906159,0.314,4321.3,4320.1,1.02969919]
[1757475906360,0.1165,4321.5,4321.2,1.02969919]
[1757475906563,0.1165,4321.5,4321.3,0.3362448]
[1757475906760,0.1165,4321.5,4321.4,0.3362448]
[1757475906966,0.237,4321.8,4321.4,0.3362448]
[1757475907161,0.314,4321.7,4321.5,0.3362448]
[1757475907354,0.314,4321.7,4320.2,0.80440247]
[1757475907355,0.314,4321.6,4320.2,0.80440247]
[1757475907666,0.6433,4321.0,4320.3,0.35286933]
[1757475907862,0.4305,4321.0,4320.4,0.35286933]
[1757475908067,0.314,4321.4,4320.6,1.02969919]
[1757475908270,0.314,4321.4,4321.2,1.02969919]
[1757475908462,0.3938,4321.9,4321.3,0.35286933]
[1757475908660,0.3938,4321.9,4321.4,0.35286933]
[1757475908859,0.314,4321.8,4321.5,0.35286933]
[1757475909067,0.181,4321.9,4321.6,0.35286933]
[1757475909366,0.181,4321.9,4320.5,0.41658]
[1757475909367,0.314,4321.8,4321.7,0.35286933]
[1757475909567,0.5268,4321.8,4321.7,0.35286933]
[1757475909868,0.314,4321.8,4321.7,0.35286933]
[1757475910865,0.5268,4321.8,4321.0,1.02969919]
[1757475911064,0.5268,4321.8,4321.1,0.35173507]
[1757475911259,0.5268,4321.8,4321.2,0.35173507]
[1757475911460,0.2128,4321.8,4321.3,0.35173507]
[1757475911659,0.6433,4321.5,4321.4,0.35173507]
[1757475911863,0.8486,4321.5,4321.4,0.35173507]
[1757475912364,1.87829919,4321.5,4321.4,0.35173507]
[1757475913659,1.87829919,4321.5,4319.7,0.41665]
[1757475913660,5.56429919,4321.5,4319.7,0.41665]
[1757475913868,1.02969919,4320.9,4319.8,1.37671771]
[1757475914060,0.314,4320.8,4319.8,1.02969919]
[1757475914260,0.314,4320.8,4319.9,7.8]
[1757475914566,1.02969919,4320.9,4319.9,7.8]
[1757475914766,0.1165,4320.5,4319.8,1.02969919]
[1757475915267,0.3293,4320.5,4319.8,8.82969919]
[1757475915862,0.314,4320.4,4319.8,8.82969919]
[1757475917063,0.314,4320.4,4320.1,1.02969919]
[1757475917965,0.3172,4320.5,4320.1,1.02969919]
[1757475918463,0.3119,4320.4,4320.1,1.02969919]
[1757475918664,0.3119,4320.3,4320.1,1.02969919]
[1757475918864,0.3119,4319.9,4319.5,1.02969919]
[1757475919065,0.3119,4319.9,4319.4,0.237]
[1757475919265,0.3119,4319.9,4319.6,1.02969919]
[1757475921165,1.14619919,4320.5,4319.8,0.4156]
[1757475922265,0.2007,4319.9,4319.8,0.4156]
[1757475922770,0.408,4319.9,4319.8,0.4156]
[1757475923271,0.7199,4319.9,4319.8,0.4156]
[1757475925772,0.7199,4319.9,4319.8,0.76103512]
[1757475926276,0.7199,4319.9,4319.8,1.17247014]
[1757475926471,0.7199,4319.9,4319.8,1.38117014]
[1757475927178,0.7199,4319.9,4319.8,1.58807014]
[1757475927378,0.7199,4319.9,4319.8,2.00695927]
[1757475928377,0.7199,4319.9,4319.8,0.76103512]
[1757475929174,0.7199,4319.9,4319.8,0.34543512]
[1757475930173,0.7199,4319.9,4319.8,0.55413512]
[1757475930376,0.3119,4319.9,4319.8,1.03873512]
[1757475930679,0.1165,4320.5,4319.8,1.03873512]
[1757475930881,0.2007,4320.3,4320.2,0.4156]
[1757475931171,0.408,4320.3,4320.2,0.4156]
[1757475931678,0.7199,4320.3,4320.2,0.4156]
[1757475931875,0.7199,4320.3,4319.9,1.65700643]
[1757475931876,0.1281,4320.0,4319.9,1.65700643]
[1757475932080,0.5361,4320.0,4319.9,1.65700643]
[1757475932379,0.848,4320.0,4319.9,1.65700643]
[1757475932568,0.5361,4320.0,4319.8,1.65700643]
[1757475932767,0.3119,4319.9,4319.8,1.86570643]
[1757475932979,0.7199,4319.9,4319.8,1.86570643]
[1757475934677,0.7199,4319.9,4319.8,1.65700643]
[1757475934980,0.3119,4319.8,4319.3,0.2777]
[1757475935179,0.408,4319.8,4319.7,0.2087]
[1757475935375,0.5361,4319.5,4319.4,0.2087]
[1757475935783,0.848,4319.5,4319.4,0.2087]
[1757475935980,0.848,4319.5,4319.1,2.08121437]
[1757475935981,0.3119,4319.4,4319.1,2.08121437]
[1757475936278,0.7199,4319.2,4319.1,0.2087]
[1757475936475,0.7199,4319.2,4319.1,0.4156]
[1757475939973,0.7199,4319.2,4319.1,0.6933]
[1757475940284,0.5126,4319.2,4319.1,0.6933]
[1757475942389,0.1281,4319.5,4319.1,0.6933]
[1757475942685,0.3119,4319.4,4319.3,2.76765722]
[1757475943383,0.5126,4319.4,4319.3,0.6933]
[1757475947495,0.5126,4319.4,4319.3,2.76908128]
[1757475948491,0.5126,4319.4,4319.3,0.6933]
[1757475949188,0.5126,4319.4,4319.3,2.77011364]
[1757475949585,0.5126,4319.4,4319.3,0.6933]
[1757475949786,0.5126,4319.4,4319.3,2.77031452]
[1757475953785,0.724,4319.4,4319.3,2.49261452]
[1757475955699,0.724,4319.4,4319.3,2.07701452]
[1757475955901,0.724,4319.4,4319.2,2.07701452]
[1757475955902,0.3223,4319.3,4319.2,2.07701452]
[1757475956101,0.7371,4319.3,4319.2,2.28031452]
[1757475956599,0.7371,4319.3,4319.2,0.6923]
[1757475957197,0.7371,4319.3,4319.2,0.4145]
[1757475957398,0.7371,4319.3,4319.2,2.49355049]
[1757475958301,0.7371,4319.3,4319.2,2.77135049]
[1757475959204,0.7371,4319.3,4319.2,2.49355049]
[1757475959398,0.7371,4319.3,4319.2,0.4145]
[1757475960000,0.7371,4319.3,4319.2,0.6923]
[1757475960500,0.7371,4319.3,4319.2,2.77222752]
[1757475960806,0.7371,4319.8,4319.7,0.4145]
[1757475962091,0.7371,4319.8,4319.4,0.2033]
[1757475962092,0.5327,4319.5,4319.4,0.2033]
[1757475962301,0.855,4319.5,4319.4,0.2033]
[1757475962492,0.855,4319.5,4319.4,0.4145]
[1757475962891,0.855,4319.5,4319.4,0.6923]
[1757475963602,0.855,4319.5,4319.4,0.4145]
[1757475967001,0.855,4319.5,4319.4,0.6923]
[1757475968404,0.1281,4320.0,4319.4,0.6923]
[1757475968610,0.3223,4320.4,4319.8,0.4145]
[1757475968803,0.5313,4320.5,4320.4,0.2033]
[1757475969407,0.8536,4320.5,4320.4,1.66297492]
[1757475969709,0.3223,4320.4,4320.3,1.66297492]
[1757475969901,0.5257,4320.0,4319.9,10.57200404]
[1757475970105,0.1165,4320.5,4320.0,0.2778]
[1757475970409,0.6422,4320.5,4320.4,2.3542047]
[1757475970609,0.6422,4320.5,4320.4,0.6923]
[1757475971301,0.8536,4320.5,4320.4,0.4145]
[1757475972009,0.8536,4320.5,4320.4,0.6923]
[1757475972304,0.5257,4320.5,4320.4,0.6923]
[1757475972502,33.352,4320.8,4320.6,0.4145]
[1757475972503,0.3223,4320.7,4320.6,0.4145]
[1757475972703,0.3223,4320.7,4320.6,0.6923]
[1757475976005,0.5257,4320.7,4320.6,0.6923]
[1757475976706,0.7371,4320.7,4320.6,0.6923]
[1757475976902,0.3024,4320.4,4320.3,1.65698323]
[1757475977106,0.1237,4320.5,4320.1,1.85158323]
[1757475977107,0.7171,4320.2,4320.1,1.85158323]
[1757475977313,0.7171,4320.2,4320.1,0.681]
[1757475977517,0.5068,4320.2,4320.1,2.33798323]
[1757475977808,0.3024,4320.9,4320.4,0.2776]
[1757475978014,0.6233,4321.0,4320.9,0.4034]
[1757475978207,0.6233,4321.0,4320.9,0.681]
[1757475978409,0.8336,4321.0,4320.9,1.64570133]
[1757475978812,0.8336,4321.0,4320.9,0.4034]
[1757475979514,0.8336,4321.0,4320.9,1.92279985]
[1757475979907,0.8336,4321.0,4320.9,1.50887826]
[1757475980306,0.6233,4321.0,4320.9,1.50887826]
[1757475981217,0.3024,4321.4,4321.3,0.681]
[1757475981514,0.7171,4321.4,4321.3,0.4034]
[1757475981716,0.4147,4321.4,4321.2,0.82723177]
[1757475981914,0.7171,4321.2,4321.0,0.82723177]
[1757475982114,0.7171,4321.2,4321.1,0.1946]
[1757475983315,0.7171,4321.2,4321.0,0.82723177]
[1757475983510,0.1237,4321.0,4320.9,0.82723177]
[1757475983714,0.8408,4321.0,4320.9,0.82723177]
[1757475984813,0.8408,4321.0,4320.9,1.02183177]
[1757475988021,0.8408,4321.0,4320.9,0.4034]
[1757475988717,0.6305,4321.0,4320.9,0.4034]
[1757475988915,0.6305,4321.0,4320.9,0.681]
[1757475990318,0.1237,4321.0,4320.5,1.65677279]
[1757475990518,0.7171,4320.6,4320.5,0.1946]
[1757475990719,0.7171,4320.6,4320.5,0.4034]
[1757475991319,0.7171,4320.6,4320.5,2.06017279]
[1757475992324,0.7171,4320.6,4320.5,2.33777279]
[1757475994318,0.7171,4320.6,4320.5,0.681]
[1757475999536,0.7171,4320.6,4320.5,2.76070404]
[1757476000432,0.3024,4320.6,4320.5,2.76070404]
[1757476000637,0.5068,4320.6,4320.5,0.681]
[1757476004539,0.7171,4320.6,4320.5,0.681]
[1757476006241,0.7171,4320.6,4320.5,0.4034]
[1757476013145,0.7171,4320.6,4320.5,0.1946]
[1757476013353,0.4026,4320.3,4320.2,3.11425049]
[1757476013651,0.1211,4320.0,4319.9,2.91575049]
[1757476013843,0.81154431,4320.0,4319.9,3.62525049]
[1757476014253,0.81154431,4320.0,4319.9,4.65208326]
[1757476014451,0.69044431,4320.0,4319.9,4.65208326]
[1757476015756,0.81154431,4320.0,4319.9,1.73633277]
[1757476016755,0.81154431,4320.0,4319.9,1.42183277]
[1757476017058,0.2955,4319.9,4319.6,11.03025049]
[1757476017258,0.6981,4319.7,4319.6,11.14925049]
[1757476017451,0.6981,4319.7,4319.6,8.2335]
[1757476017652,0.6981,4319.7,4319.6,8.7445]
[1757476017857,0.6981,4319.7,4319.6,9.77133277]
[1757476021461,0.2955,4319.9,4319.7,0.3145]
[1757476021672,0.2955,4319.9,4319.8,1.42183277]
[1757476021963,0.2955,4319.9,4319.8,1.73633277]
[1757476022758,0.2955,4320.5,4320.4,0.7095]
[1757476022962,0.2955,4320.5,4320.4,1.73633277]
[1757476023364,0.1237,4321.0,4320.4,1.73633277]
[1757476023566,0.4921,4320.9,4320.8,2.37095878]
[1757476023862,0.4921,4320.9,4320.8,2.3708917]
[1757476024074,0.6981,4320.9,4320.8,2.3708917]
[1757476025261,0.6981,4320.9,4320.8,2.0563917]
[1757476026565,0.6981,4320.9,4320.8,2.3708917]
[1757476027566,0.6981,4320.9,4320.8,2.0563917]
[1757476028559,0.6981,4320.9,4320.8,2.05645806]
[1757476029365,0.6981,4320.9,4320.8,2.05648841]
[1757476029670,0.6981,4320.9,4320.8,1.66148841]
[1757476029966,0.6981,4320.9,4320.6,1.66148841]
[1757476030169,1.32233277,4320.8,4320.6,1.66148841]
[1757476030369,0.6981,4320.7,4320.6,1.66148841]
[1757476030570,0.4026,4320.7,4320.5,1.66148841]
[1757476030769,0.6981,4320.6,4320.5,1.66148841]
[1757476031072,0.6981,4320.6,4320.5,1.85998841]
[1757476032362,0.6981,4320.6,4320.5,2.17448841]
[1757476033071,0.6981,4320.6,4320.5,2.37098841]
[1757476033558,0.6981,4320.6,4320.5,1.85998841]
[1757476033870,0.6981,4320.6,4320.5,1.66148841]
[1757476034267,0.8192,4320.5,4320.4,1.85998841]
[1757476034669,0.4921,4320.5,4320.4,2.37098841]
[1757476035070,0.3577,4321.0,4320.8,0.395]
[1757476035269,0.4921,4320.9,4320.8,0.7095]
[1757476035475,0.6981,4320.9,4320.8,0.7095]
[1757476036766,0.6981,4320.9,4320.8,0.395]
[1757476038777,0.5192,4320.5,4320.4,1.85998841]
[1757476038977,0.8408,4320.5,4320.4,1.85998841]
[1757476039578,0.8408,4320.5,4320.4,2.15358841]
[1757476039872,0.8408,4320.5,4320.4,2.35208841]
[1757476040184,0.8408,4320.5,4320.4,0.6906]
[1757476040669,0.722,4320.5,4320.4,0.6906]
[1757476041577,0.5241,4320.5,4320.4,0.6906]
[1757476042275,0.8408,4320.5,4320.4,0.6906]
[1757476046580,0.8408,4320.5,4320.4,0.397]
[1757476046781,0.8408,4320.5,4320.4,0.6906]
[1757476047981,0.8408,4320.5,4320.4,0.397]
[1757476051483,0.8408,4320.5,4320.4,0.1985]
[1757476054679,0.3216,4320.4,4320.2,2.07702963]
[1757476054883,0.722,4320.2,4320.1,2.07702963]
[1757476055084,1.61643287,4320.2,4319.9,1.66394298]